bitfinex/quotes_BTCUSD_20250225
["timestamp","ask_amount","ask_price","bid_price","bid_amount"]
[1740518144125,0.0793,88239.0,88231.0,0.00156751]
[1740518144329,0.305958,88239.0,88231.0,0.00156751]
[1740518144533,0.305958,88239.0,88216.0,0.3331]
[1740518144534,0.0463,88246.0,88236.0,0.00156751]
[1740518144885,0.04642623,88246.0,88236.0,0.00156751]
[1740518145085,0.169993,88239.0,88236.0,0.00156751]
[1740518145669,0.226653,88241.0,88236.0,0.00156751]
[1740518145849,0.0008466,88242.0,88217.0,0.3]
[1740518146079,0.170017,88226.0,88225.0,0.00156751]
[1740518146316,0.16887565,88226.0,88225.0,0.00156751]
[1740518147429,0.170016,88227.0,88225.0,0.00156751]
[1740518147557,0.170016,88227.0,88225.0,0.00556751]
[1740518147753,0.170013,88229.0,88225.0,0.00556751]
[1740518147956,0.3,88238.0,88225.0,0.00556751]
[1740518148171,0.3,88232.0,88225.0,0.00956751]
[1740518148367,0.3,88232.0,88225.0,0.00556751]
[1740518148573,0.526676,88232.0,88225.0,0.00156751]
[1740518148866,0.170017,88226.0,88225.0,0.00556751]
[1740518149183,0.3,88238.0,88226.0,0.22669]
[1740518149389,0.169989,88241.0,88232.0,0.00156751]
[1740518149589,0.0008466,88242.0,88232.0,0.00156751]
[1740518149590,0.169992,88240.0,88232.0,0.00156751]
[1740518149792,0.3,88241.0,88234.0,0.00156751]
[1740518150312,0.169996,88238.0,88234.0,0.00156751]
[1740518150713,0.0008466,88242.0,88238.0,0.00156751]
[1740518150891,0.0008466,88242.0,88241.0,0.00156751]
[1740518151092,0.1708336,88242.0,88241.0,0.00156751]
[1740518151675,0.0008466,88242.0,88234.0,0.003]
[1740518151883,0.2498,88235.0,88234.0,0.003]
[1740518152077,0.17003,88220.0,88216.0,0.0016932]
[1740518152367,0.170031,88219.0,88216.0,0.0016932]
[1740518152518,0.396732,88221.0,88216.0,0.0016932]
[1740518152696,0.0798,88235.0,88216.0,0.0016932]
[1740518152901,0.0798,88235.0,88218.0,0.00156751]
[1740518153098,0.170031,88219.0,88218.0,0.00156751]
[1740518153310,0.3,88229.0,88218.0,0.00156751]
[1740518153511,0.3,88222.0,88218.0,0.00156751]
[1740518153755,0.526702,88222.0,88218.0,0.00156751]
[1740518154051,0.170031,88219.0,88218.0,0.00156751]
[1740518154622,0.170033,88218.0,88217.0,0.00156751]
[1740518155025,0.170035,88217.0,88216.0,0.00326071]
[1740518156153,0.170035,88217.0,88216.0,0.0016932]
[1740518156488,0.470035,88217.0,88216.0,0.0016932]
[1740518157418,0.470035,88217.0,88216.0,0.0056932]
[1740518157850,0.470035,88217.0,88216.0,0.0016932]
[1740518158054,0.470035,88217.0,88216.0,0.0066932]
[1740518158278,0.470035,88217.0,88216.0,0.0036932]
[1740518158599,0.3,88217.0,88216.0,0.0066932]
[1740518158805,0.470035,88217.0,88216.0,0.0066932]
[1740518159010,0.470035,88217.0,88216.0,0.0046932]
[1740518159210,0.1708648,88226.0,88218.0,0.170032]
[1740518159428,0.226693,88225.0,88216.0,0.00326071]
[1740518159645,0.170032,88219.0,88216.0,0.00626071]
[1740518159876,0.170031,88219.0,88216.0,0.00626071]
[1740518160414,0.0008468,88226.0,88216.0,0.00826071]
[1740518160641,0.170035,88217.0,88216.0,0.00826071]
[1740518161053,0.22671,88219.0,88216.0,0.00526071]
[1740518161250,0.3,88223.0,88216.0,0.00926071]
[1740518161549,0.17003,88220.0,88216.0,0.00326071]
[1740518161760,0.17003,88220.0,88216.0,0.01126071]
[1740518162165,0.170035,88217.0,88216.0,0.00326071]
[1740518162366,0.170035,88217.0,88216.0,0.0036932]
[1740518162548,0.170035,88217.0,88216.0,0.0016932]
[1740518162760,0.170035,88217.0,88216.0,0.00326071]
[1740518162962,0.170035,88217.0,88216.0,0.00726071]
[1740518163167,0.3008468,88226.0,88218.0,0.170032]
[1740518163449,0.470035,88217.0,88216.0,0.0056932]
[1740518163861,0.470035,88217.0,88216.0,0.0076932]
[1740518164070,0.70442115,88217.0,88216.0,0.0076932]
[1740518164269,0.61207585,88217.0,88216.0,0.0016932]
[1740518164441,0.597535,88217.0,88216.0,0.0016932]
[1740518164610,0.597535,88217.0,88216.0,0.0046932]
[1740518164795,0.597535,88217.0,88216.0,0.0016932]
[1740518165242,0.470035,88217.0,88216.0,0.0016932]
[1740518166223,0.3,88217.0,88216.0,0.0016932]
[1740518166429,0.0008468,88226.0,88225.0,0.17158651]
[1740518167508,0.0008468,88226.0,88225.0,0.00156751]
[1740518167731,0.0008468,88226.0,88225.0,0.17158651]
[1740518168283,0.14391402,88233.0,88232.0,0.00156751]
[1740518168691,0.226668,88235.0,88232.0,0.00156751]
[1740518168823,0.0008466,88242.0,88233.0,0.00156751]
[1740518169008,0.170002,88234.0,88233.0,0.00156751]
[1740518169888,0.170004,88233.0,88232.0,0.00156751]
[1740518170378,0.170008,88231.0,88230.0,0.00156751]
[1740518170701,0.226659,88238.0,88227.0,0.00156751]
[1740518170908,0.170033,88218.0,88216.0,0.0016932]
[1740518171051,0.226708,88220.0,88216.0,0.0016932]
[1740518171258,0.170035,88217.0,88216.0,0.0016932]
[1740518172304,0.170035,88217.0,88216.0,0.0086932]
[1740518172503,0.170035,88217.0,88216.0,0.0156932]
[1740518172827,0.170035,88217.0,88216.0,0.0086932]
[1740518173316,0.170035,88217.0,88216.0,0.0136932]
[1740518173532,0.170035,88217.0,88216.0,0.0066932]
[1740518173733,0.170035,88217.0,88216.0,0.0116932]
[1740518174343,0.170035,88217.0,88216.0,0.0016932]
[1740518174570,0.170035,88217.0,88216.0,0.0026932]
[1740518174745,0.170035,88217.0,88216.0,0.0046932]
[1740518175104,0.170035,88217.0,88216.0,0.0066932]
[1740518175358,0.48457585,88217.0,88216.0,0.0066932]
[1740518175961,0.48457585,88217.0,88216.0,0.0026932]
[1740518176948,0.39694085,88216.0,88197.0,0.00156751]
[1740518177204,0.170071,88198.0,88197.0,0.00156751]
[1740518178152,0.170064,88203.0,88198.0,0.00156751]
[1740518178357,0.3,88204.0,88198.0,0.00156751]
[1740518178651,0.0781,88224.0,88198.0,0.00156751]
[1740518178652,0.170069,88199.0,88198.0,0.00156751]
[1740518178855,0.470069,88199.0,88198.0,0.00156751]
[1740518179172,0.50433677,88199.0,88198.0,0.00156751]
[1740518179372,0.33426777,88199.0,88198.0,0.00156751]
[1740518179741,0.33426777,88199.0,88198.0,0.17163851]
[1740518179943,0.33426777,88199.0,88198.0,0.00156751]
[1740518180197,0.50433677,88199.0,88198.0,0.00156751]
[1740518180561,0.50433677,88199.0,88198.0,0.00556751]
[1740518180783,0.50433677,88199.0,88198.0,0.00956751]
[1740518180988,0.33426777,88199.0,88198.0,0.00956751]
[1740518181191,0.226712,88218.0,88198.0,0.01456751]
[1740518181379,0.01454085,88229.0,88206.0,0.170056]
[1740518181380,0.304798,88224.0,88206.0,0.170056]
[1740518181584,0.170044,88213.0,88207.0,0.17161951]
[1740518181798,0.3,88210.0,88207.0,0.00156751]
[1740518182044,0.3,88208.0,88207.0,0.00156751]
[1740518182257,0.47005,88210.0,88207.0,0.00156751]
[1740518182566,0.3,88210.0,88209.0,0.17005]
[1740518182771,0.0008469,88217.0,88215.0,0.00156751]
[1740518183175,0.3008469,88217.0,88215.0,0.00156751]
[1740518183749,0.470037,88216.0,88215.0,0.00156751]
[1740518184375,0.50427719,88216.0,88215.0,0.00156751]
[1740518184737,0.33424019,88216.0,88207.0,0.0001263]
[1740518184899,0.33424019,88216.0,88207.0,0.00169381]
[1740518184900,0.170052,88208.0,88207.0,0.00169381]
[1740518185728,0.170052,88208.0,88207.0,0.0001263]
[1740518186129,0.170052,88208.0,88207.0,0.00169381]
[1740518187428,0.170052,88208.0,88207.0,0.0051263]
[1740518187784,0.170052,88208.0,88207.0,0.00669381]
[1740518187941,0.170052,88208.0,88207.0,0.0101263]
[1740518188323,0.170052,88208.0,88207.0,0.01169381]
[1740518189117,0.3,88218.0,88215.0,0.00156751]
[1740518189321,0.3,88216.0,88215.0,0.00156751]
[1740518189522,0.170021,88225.0,88216.0,0.17160451]
[1740518189724,0.03357136,88218.0,88216.0,0.17160451]
[1740518189945,0.3,88222.0,88216.0,0.17160451]
[1740518190144,0.226666,88236.0,88216.0,0.17160451]
[1740518190440,0.226653,88241.0,88216.0,0.17160451]
[1740518190641,0.0925619,88258.0,88216.0,0.61203897]
[1740518190846,0.0925619,88258.0,88216.0,0.61045204]
[1740518191047,0.169977,88247.0,88216.0,0.69175204]
[1740518191260,0.3,88245.0,88216.0,0.69175204]
[1740518191453,0.169981,88245.0,88216.0,0.69175204]
[1740518191653,0.226632,88249.0,88216.0,0.69175204]
[1740518191909,0.03372286,88233.0,88216.0,0.69875204]
[1740518192294,0.170008,88232.0,88216.0,0.69875204]
[1740518192496,0.03372286,88233.0,88216.0,0.69875204]
[1740518192699,0.03372286,88233.0,88216.0,0.584437]
[1740518192935,0.03372286,88233.0,88216.0,0.3331]
[1740518193104,0.1708819,88217.0,88216.0,0.007]
[1740518193404,0.1708819,88217.0,88207.0,0.0001263]
[1740518193405,0.170052,88208.0,88207.0,0.0001263]
[1740518193623,0.170069,88199.0,88198.0,0.0016938]
[1740518193855,0.470069,88199.0,88198.0,0.0016938]
[1740518199671,0.471069,88199.0,88198.0,0.0016938]
[1740518200734,0.473069,88199.0,88198.0,0.0016938]
[1740518201349,0.48760985,88199.0,88198.0,0.0016938]
[1740518201673,0.01454085,88198.0,88159.0,0.13970754]
[1740518201878,0.170124,88171.0,88170.0,0.00156751]
[1740518202277,0.3,88185.0,88170.0,0.00156751]
[1740518202435,0.470108,88179.0,88178.0,0.00156751]
[1740518203296,0.470108,88179.0,88178.0,0.00098888]
[1740518203873,0.470108,88179.0,88178.0,0.00598888]
[1740518205183,0.470108,88179.0,88178.0,0.01098888]
[1740518205384,0.470108,88179.0,88178.0,0.01042137]
[1740518206180,0.470108,88179.0,88178.0,0.01211517]
[1740518206381,0.470108,88179.0,88178.0,0.00711517]
[1740518206698,0.470108,88179.0,88178.0,0.00511517]
[1740518206896,0.50400616,88179.0,88178.0,0.00511517]
[1740518207125,0.50700616,88179.0,88178.0,0.00511517]
[1740518208067,0.170154,88155.0,88154.0,0.0008475]
[1740518208218,0.470154,88155.0,88154.0,0.0009622]
[1740518209792,0.470154,88155.0,88154.0,0.0069622]
[1740518210549,0.170154,88155.0,88154.0,0.0069622]
[1740518218275,0.470154,88155.0,88154.0,0.0069622]
[1740518221637,0.47861181,88155.0,88154.0,0.0069622]
[1740518221918,0.170174,88145.0,88144.0,0.0016932]
[1740518222099,0.470174,88145.0,88144.0,0.0016932]
[1740518223105,0.471174,88145.0,88144.0,0.0016932]
[1740518224090,0.48571485,88145.0,88144.0,0.0016932]
[1740518226114,0.470189,88137.0,88127.0,0.0016932]
[1740518227134,0.470189,88137.0,88127.0,0.00226071]
[1740518227494,0.470189,88137.0,88127.0,0.0016932]
[1740518227845,0.470189,88137.0,88127.0,0.00226071]
[1740518228247,0.470189,88137.0,88127.0,0.0016932]
[1740518228453,0.470189,88137.0,88136.0,0.0036932]
[1740518228778,0.3293,88147.0,88137.0,0.226919]
[1740518228931,0.3293,88147.0,88141.0,0.226906]
[1740518229277,0.3293,88147.0,88143.0,0.17074451]
[1740518229501,0.170174,88145.0,88144.0,0.001695]
[1740518229867,0.3293,88147.0,88144.0,0.001695]
[1740518230070,0.3323,88147.0,88144.0,0.001695]
[1740518230273,0.170174,88145.0,88144.0,0.001695]
[1740518231296,0.003,88147.0,88146.0,0.00056751]
[1740518231497,0.171171,88147.0,88146.0,0.00056751]
[1740518231672,0.171171,88147.0,88144.0,0.001695]
[1740518231673,0.00143249,88145.0,88144.0,0.001695]
[1740518231879,0.17160649,88145.0,88144.0,0.001695]
[1740518232142,0.17060649,88145.0,88144.0,0.00746882]
[1740518232289,0.170174,88145.0,88144.0,0.003695]
[1740518232628,0.470174,88145.0,88144.0,0.001695]
[1740518232832,0.48471485,88145.0,88144.0,0.001695]
[1740518233135,0.48471485,88145.0,88144.0,0.003695]
[1740518233346,0.47313976,88145.0,88144.0,0.005695]
[1740518234383,0.47313976,88145.0,88144.0,0.003695]
[1740518234938,0.47713976,88145.0,88144.0,0.001695]
[1740518235232,0.47313976,88145.0,88144.0,0.001695]
[1740518235650,0.470189,88137.0,88136.0,0.0016932]
[1740518236780,0.470189,88137.0,88136.0,0.0036932]
[1740518238464,0.470189,88137.0,88136.0,0.0046932]
[1740518238600,0.470189,88137.0,88136.0,0.0026932]
[1740518239017,0.470189,88137.0,88136.0,0.0036932]
[1740518239301,0.170189,88137.0,88136.0,0.0026932]
[1740518239704,0.170189,88137.0,88136.0,0.00846772]
[1740518240035,0.170189,88137.0,88136.0,0.0016932]
[1740518241493,0.171189,88137.0,88136.0,0.0016932]
[1740518241973,0.170189,88137.0,88136.0,0.0016932]
[1740518242374,0.170189,88137.0,88136.0,0.00745816]
[1740518242532,0.0008476,88144.0,88143.0,0.170178]
[1740518242733,0.0008476,88144.0,88143.0,0.34068554]
[1740518242933,0.0008476,88144.0,88143.0,0.34644317]
[1740518243315,0.0008476,88144.0,88143.0,0.4601907]
[1740518243517,0.03474536,88179.0,88153.0,0.170158]
[1740518243759,0.0008952,88154.0,88153.0,0.36270553]
[1740518243961,2e-07,88154.0,88153.0,1.5907901]
[1740518244307,0.0008472,88179.0,88178.0,0.29501]
[1740518244457,0.0008472,88179.0,88178.0,0.74501753]
[1740518244666,0.00089498,88179.0,88178.0,1.58161753]
[1740518244837,0.00089498,88179.0,88178.0,1.58726232]
[1740518245442,0.00089498,88179.0,88178.0,1.59126232]
[1740518245652,0.00289498,88179.0,88178.0,1.59826232]
[1740518246070,0.00189498,88179.0,88178.0,1.00024479]
[1740518246271,0.170093,88187.0,88178.0,1.17035479]
[1740518246473,0.226763,88198.0,88182.0,0.09090754]
[1740518247011,0.170098,88184.0,88183.0,0.00544797]
[1740518247188,0.170096,88186.0,88183.0,0.00544797]
[1740518247530,0.00042112,88186.0,88183.0,0.00544797]
[1740518247749,0.170097,88185.0,88183.0,0.00544797]
[1740518248127,0.00042112,88186.0,88182.0,0.09090754]
[1740518248346,0.17051612,88186.0,88184.0,0.00545844]
[1740518248651,0.00042112,88186.0,88185.0,0.170096]
[1740518248812,0.00142112,88186.0,88185.0,0.17555433]
[1740518249231,0.00142112,88186.0,88185.0,0.17455433]
[1740518249409,0.00042112,88186.0,88185.0,0.17455433]
[1740518249968,0.00242112,88186.0,88185.0,0.01245833]
[1740518250131,0.00242112,88186.0,88185.0,0.00545833]
[1740518250337,0.17251612,88186.0,88185.0,0.00545833]
[1740518250664,0.17251612,88186.0,88184.0,0.007]
[1740518250665,0.170096,88185.0,88184.0,0.007]
[1740518251723,0.00142112,88186.0,88163.0,0.0495]
[1740518251951,0.470096,88185.0,88184.0,0.00547022]
[1740518252160,0.170131,88168.0,88153.0,0.3251]
[1740518252361,0.170132,88167.0,88156.0,0.170152]
[1740518252931,0.30142112,88186.0,88156.0,0.170152]
[1740518252932,0.30142112,88186.0,88156.0,0.170151]
[1740518253105,0.30142112,88186.0,88153.0,0.3251]
[1740518253331,0.226829,88173.0,88156.0,0.170152]
[1740518253463,0.170133,88166.0,88156.0,0.170152]
[1740518253666,0.001,88167.0,88156.0,0.007]
[1740518253909,0.170133,88166.0,88156.0,0.007]
[1740518254115,0.170133,88166.0,88157.0,0.17015]
[1740518254296,0.170133,88166.0,88156.0,0.007]
[1740518254496,0.171131,88167.0,88156.0,0.177152]
[1740518254696,0.002,88167.0,88156.0,0.014]
[1740518255108,0.172133,88167.0,88156.0,0.007]
[1740518255309,0.170133,88167.0,88153.0,0.551976]
[1740518255527,0.171133,88166.0,88156.0,0.007]
[1740518255897,0.170979,88168.0,88157.0,0.17015]
[1740518256104,0.001,88167.0,88156.0,0.176152]
[1740518256305,0.002,88167.0,88156.0,0.177152]
[1740518256626,0.001,88166.0,88156.0,0.184152]
[1740518257009,0.001,88166.0,88161.0,0.09090754]
[1740518257232,0.001,88166.0,88165.0,0.170135]
[1740518257412,0.001,88166.0,88165.0,0.36318253]
[1740518258592,0.001848,88168.0,88167.0,0.170131]
[1740518259021,0.000848,88168.0,88167.0,0.170131]
[1740518259229,0.000848,88168.0,88165.0,0.0793]
[1740518259438,0.172133,88166.0,88165.0,0.012]
[1740518259638,0.171133,88166.0,88165.0,0.007]
[1740518259872,0.471133,88166.0,88165.0,0.007]
[1740518260596,0.3,88165.0,88145.0,0.3251]
[1740518260790,0.17016,88153.0,88145.0,0.3251]
[1740518261006,0.17017,88147.0,88146.0,0.00716321]
[1740518261207,0.22686,88160.0,88143.0,0.09090754]
[1740518261650,0.227688,88168.0,88167.0,0.007]
[1740518261651,0.470977,88168.0,88167.0,0.007]
[1740518262065,0.470977,88168.0,88167.0,4.778e-05]
[1740518264165,0.471977,88168.0,88167.0,4.778e-05]
[1740518265842,0.47046384,88168.0,88167.0,4.778e-05]
[1740518267869,0.170156,88154.0,88153.0,0.0016952]
[1740518268070,0.48469685,88154.0,88153.0,0.0016952]
[1740518269449,0.49069685,88154.0,88153.0,0.0026952]
[1740518270928,0.49369685,88154.0,88153.0,0.0026952]
[1740518271135,0.49286439,88154.0,88153.0,0.0026952]
[1740518271343,0.60372135,88154.0,88153.0,2e-07]
[1740518271561,0.60972135,88154.0,88153.0,0.0010002]
[1740518271763,0.49586439,88154.0,88153.0,0.0010002]
[1740518276642,0.02654085,88154.0,88153.0,0.0010002]
[1740518276805,0.2352826,88156.0,88153.0,0.0010002]
[1740518277002,0.170156,88154.0,88153.0,0.0010002]
[1740518277550,0.499456,88154.0,88153.0,2e-07]
[1740518277749,0.3293,88154.0,88127.0,0.0016932]
[1740518277961,0.170189,88137.0,88136.0,0.0017409]
[1740518278845,0.170189,88137.0,88136.0,0.0027409]
[1740518279429,0.20718729,88137.0,88136.0,0.0017409]
[1740518280825,0.20718729,88137.0,88136.0,0.0037409]
[1740518281226,0.20714263,88137.0,88136.0,0.0037409]
[1740518285706,0.170206,88128.0,88127.0,0.0016932]
[1740518285926,0.470206,88128.0,88127.0,0.0017601]
[1740518287176,0.472206,88128.0,88127.0,0.0017601]
[1740518288162,0.47403838,88128.0,88127.0,0.0017601]
[1740518290127,0.48265112,88128.0,88127.0,0.0017601]
[1740518293930,0.82649197,88128.0,88127.0,0.0017601]
[1740518294246,0.470224,88119.0,88118.0,0.0016936]
[1740518294460,0.470224,88119.0,88118.0,0.00181999]
[1740518294840,0.48476485,88119.0,88118.0,0.00181999]
[1740518295072,0.470241,88110.0,88109.0,6e-07]
[1740518295282,0.48478385,88109.0,88108.0,5e-07]
[1740518296044,0.89328385,88109.0,88108.0,5e-07]
[1740518296278,0.89328385,88109.0,88096.0,0.000848]
[1740518296279,0.48480685,88097.0,88096.0,0.000848]
[1740518296487,0.48480685,88097.0,88096.0,0.0009743]
[1740518296724,0.33902159,88108.0,88058.0,0.0799]
[1740518296725,0.3,88089.0,88058.0,0.0799]
[1740518296862,0.170315,88072.0,88071.0,0.09132865]
[1740518298399,0.170315,88072.0,88071.0,0.09332865]
[1740518298724,0.170315,88072.0,88071.0,0.09632865]
[1740518299737,0.03641078,88072.0,88071.0,0.09632865]
[1740518300028,0.1,88113.0,88071.0,0.10397115]
[1740518300201,0.227024,88097.0,88083.0,0.09090754]
[1740518300403,0.226995,88108.0,88083.0,0.09090754]
[1740518300404,0.170291,88084.0,88083.0,0.09090754]
[1740518301385,0.227046,88088.0,88083.0,0.09090754]
[1740518301595,0.17029,88085.0,88083.0,0.09290754]
[1740518301780,0.170291,88084.0,88083.0,0.09090754]
[1740518301981,0.170291,88084.0,88083.0,0.09490754]
[1740518302175,0.3,88095.0,88083.0,0.09490754]
[1740518302431,0.170287,88087.0,88083.0,0.09490754]
[1740518303239,0.226972,88117.0,88083.0,0.09890754]
[1740518303381,0.226937,88130.0,88098.0,0.276919]
[1740518303734,0.170231,88116.0,88106.0,0.09090754]
[1740518303971,0.04497025,88130.0,88117.0,0.09090754]
[1740518304178,0.04497025,88130.0,88126.0,0.09090754]
[1740518304288,0.00858873,88130.0,88126.0,0.09090754]
[1740518304490,0.00858873,88130.0,88128.0,0.170205]
[1740518304700,0.3,88129.0,88117.0,0.09090754]
[1740518305017,0.170226,88118.0,88117.0,0.09090754]
[1740518305218,0.470226,88118.0,88117.0,0.09290754]
[1740518306257,0.470226,88118.0,88117.0,0.09490754]
[1740518306464,0.470226,88118.0,88117.0,0.09290754]
[1740518306679,0.470226,88118.0,88117.0,0.09090754]
[1740518306874,0.470226,88118.0,88117.0,0.09490754]
[1740518307650,0.470226,88118.0,88117.0,0.09790754]
[1740518308064,0.470226,88118.0,88117.0,0.007]
[1740518308396,0.226903,88144.0,88117.0,0.233969]
[1740518308604,0.170222,88120.0,88118.0,0.09839529]
[1740518308825,0.3,88119.0,88118.0,0.09839529]
[1740518309193,0.26550643,88137.0,88118.0,0.09090754]
[1740518309436,0.26550643,88137.0,88129.0,0.170205]
[1740518309437,0.03858743,88137.0,88129.0,0.170205]
[1740518309751,0.03858743,88137.0,88127.0,0.31784954]
[1740518310105,0.03858743,88137.0,88128.0,0.00747477]
[1740518310106,0.470205,88129.0,88128.0,0.00747477]
[1740518310575,0.170206,88128.0,88127.0,0.09090754]
[1740518311473,0.170247,88107.0,88106.0,0.09090754]
[1740518311887,0.170247,88107.0,88106.0,0.09838397]
[1740518312088,0.170247,88107.0,88106.0,0.09090754]
[1740518312223,0.3,88120.0,88106.0,0.09090754]
[1740518312424,0.226957,88123.0,88106.0,0.09090754]
[1740518312700,0.3,88120.0,88115.0,0.09090754]
[1740518312892,0.3,88118.0,88115.0,0.09090754]
[1740518313055,0.3,88118.0,88116.0,0.00748033]
[1740518313458,0.226923,88136.0,88116.0,0.00748033]
[1740518313655,0.170213,88125.0,88119.0,0.170222]
[1740518313859,0.52706523,88130.0,88115.0,0.09090754]
[1740518314087,0.3,88127.0,88126.0,0.24871]
[1740518314285,0.3,88127.0,88124.0,0.09090754]
[1740518314490,0.470208,88127.0,88126.0,0.00748556]
[1740518314712,0.3,88127.0,88125.0,0.17769768]
[1740518314913,0.170212,88125.0,88124.0,0.09090754]
[1740518315087,0.00012623,88130.0,88124.0,0.09090754]
[1740518315271,0.00012623,88130.0,88126.0,0.003]
[1740518315681,0.170208,88127.0,88126.0,0.003]
[1740518316421,0.3,88128.0,88126.0,0.003]
[1740518316641,0.3,88128.0,88124.0,0.09090754]
[1740518316818,0.17021,88127.0,88125.0,0.003]
[1740518317119,0.00012623,88130.0,88125.0,0.003]
[1740518317671,0.00012623,88130.0,88124.0,0.09090754]
[1740518317672,0.17033023,88130.0,88124.0,0.09090754]
[1740518317810,0.00012623,88130.0,88124.0,0.09090754]
[1740518318009,0.17021,88126.0,88125.0,0.003]
[1740518318280,0.17021,88126.0,88124.0,0.09090754]
[1740518318595,0.0016962,88128.0,88124.0,0.09090754]
[1740518318818,0.170209,88127.0,88124.0,0.09090754]
[1740518319029,0.0016962,88128.0,88127.0,0.217308]
[1740518319257,0.0016962,88128.0,88127.0,0.65774411]
[1740518319465,0.0016962,88128.0,88127.0,0.73485553]
[1740518319865,0.0016962,88128.0,88127.0,0.4509]
[1740518320062,0.1719022,88128.0,88127.0,0.0501]
[1740518320311,0.0016962,88128.0,88127.0,0.003]
[1740518320514,0.0016962,88128.0,88127.0,0.007]
[1740518320756,0.0016962,88128.0,88127.0,0.1915947]
[1740518320954,0.0016962,88128.0,88127.0,0.177208]
[1740518321156,0.0016962,88128.0,88127.0,0.1845947]
[1740518321379,0.0016962,88128.0,88127.0,0.0213867]
[1740518321888,0.0016962,88128.0,88127.0,0.1845947]
[1740518322860,0.0016962,88128.0,88127.0,0.1915947]
[1740518324867,0.20493337,88148.0,88127.0,0.3464867]
[1740518325074,0.170178,88143.0,88134.0,0.31783254]
[1740518325328,0.26307978,88145.0,88135.0,0.226924]
[1740518325495,0.170176,88144.0,88135.0,0.23431418]
[1740518325856,0.03618178,88145.0,88138.0,0.170187]
[1740518325981,0.170173,88146.0,88137.0,0.226919]
[1740518325982,0.170174,88146.0,88137.0,0.226919]
[1740518326183,0.170174,88146.0,88140.0,0.170183]
[1740518326382,0.001,88148.0,88141.0,0.00738948]
[1740518326696,0.3,88149.0,88140.0,0.226911]
[1740518326865,0.17017,88147.0,88141.0,0.170181]
[1740518327065,0.3,88147.0,88141.0,0.00738948]
[1740518327431,0.3,88147.0,88135.0,0.001]
[1740518327786,0.3,88147.0,88143.0,0.170177]
[1740518327992,0.3,88147.0,88144.0,0.00738914]
[1740518328188,0.3,88149.0,88144.0,0.17756514]
[1740518328390,0.3,88149.0,88144.0,0.00738914]
[1740518328566,0.3,88149.0,88141.0,0.17318]
[1740518328889,0.170173,88146.0,88142.0,0.00731376]
[1740518329301,0.170173,88146.0,88141.0,0.006]
[1740518329512,0.3,88147.0,88141.0,0.006]
[1740518329513,0.0008477,88168.0,88143.0,0.09822118]
[1740518329721,0.00097412,88168.0,88160.0,0.22686]
[1740518329934,0.00097412,88168.0,88164.0,0.170135]
[1740518330332,0.00097412,88168.0,88165.0,0.17743869]
[1740518330565,0.00097412,88168.0,88167.0,0.170131]
[1740518330896,0.00097412,88168.0,88167.0,0.17743446]
[1740518331308,0.00097412,88168.0,88167.0,0.22483446]
[1740518332391,0.00097412,88168.0,88167.0,0.23183446]
[1740518333810,0.2276456,88185.0,88168.0,0.226839]
[1740518334010,0.170102,88183.0,88170.0,0.226834]
[1740518334256,0.170101,88183.0,88171.0,0.00724132]
[1740518334463,0.03680767,88183.0,88171.0,0.00724132]
[1740518334669,0.170107,88180.0,88171.0,0.00724132]
[1740518334821,0.17011,88179.0,88172.0,0.170122]
[1740518334990,0.17011,88179.0,88173.0,0.17735909]
[1740518335468,0.17011,88179.0,88173.0,0.00724109]
[1740518335656,0.17011,88179.0,88174.0,0.170118]
[1740518335861,0.170107,88180.0,88174.0,0.170118]
[1740518336064,0.170107,88180.0,88175.0,0.00714287]
[1740518336227,0.170105,88181.0,88175.0,0.00714287]
[1740518336426,0.170105,88181.0,88173.0,0.226826]
[1740518336623,0.170105,88181.0,88174.0,0.00714299]
[1740518336849,0.170116,88175.0,88174.0,0.00714299]
[1740518337256,0.0358033,88183.0,88175.0,0.003]
[1740518337456,0.3,88182.0,88171.0,0.170122]
[1740518337714,0.3,88179.0,88173.0,0.004]
[1740518337911,0.170112,88177.0,88174.0,0.003]
[1740518338250,0.170108,88179.0,88175.0,0.00715329]
[1740518338454,0.470107,88180.0,88174.0,0.006]
[1740518338690,0.3,88180.0,88174.0,0.006]
[1740518338889,0.3,88180.0,88165.0,0.09090754]
[1740518339092,0.03668715,88183.0,88165.0,0.09090754]
[1740518339093,0.03668715,88183.0,88182.0,0.170102]
[1740518339318,0.00126882,88185.0,88184.0,0.170098]
[1740518339522,0.00126882,88185.0,88184.0,0.17168547]
[1740518339740,0.00126882,88185.0,88184.0,0.17883472]
[1740518340477,0.00126882,88185.0,88184.0,0.29258225]
[1740518340676,0.00126882,88185.0,88184.0,0.29099478]
[1740518340918,0.00126882,88185.0,88184.0,0.29499478]
[1740518341277,0.00126882,88185.0,88184.0,0.59499478]
[1740518341444,0.00126882,88185.0,88184.0,1.00199478]
[1740518341648,0.00126882,88185.0,88184.0,1.00699478]
[1740518342065,0.04292404,88211.0,88184.0,0.83689678]
[1740518342263,0.00012631,88211.0,88208.0,0.170052]
[1740518342615,0.00012631,88211.0,88209.0,0.00707505]
[1740518342876,0.00012631,88211.0,88210.0,0.170048]
[1740518343077,0.00012631,88211.0,88210.0,0.17712294]
[1740518343437,0.00012631,88211.0,88210.0,0.00707494]
[1740518343642,0.00012631,88211.0,88210.0,0.170048]
[1740518343864,0.00012631,88211.0,88210.0,0.17712294]
[1740518344279,0.00012631,88211.0,88210.0,0.00707494]
[1740518344626,0.00012631,88211.0,88193.0,0.09090754]
[1740518344845,0.39690331,88211.0,88210.0,0.01107494]
[1740518345065,0.39690331,88211.0,88210.0,0.004]
[1740518345438,0.39690331,88211.0,88184.0,0.54768]
[1740518345439,0.170066,88201.0,88189.0,0.226784]
[1740518345650,0.00012631,88211.0,88184.0,0.54768]
[1740518345896,0.00012631,88211.0,88195.0,0.0057538]
[1740518346097,0.17017231,88211.0,88210.0,0.004]
[1740518346387,2.963e-05,88211.0,88196.0,0.00575368]
[1740518346543,0.170063,88203.0,88194.0,0.3261]
[1740518346901,0.226736,88209.0,88196.0,0.170075]
[1740518347126,2.963e-05,88211.0,88195.0,0.17585658]
[1740518347339,0.170063,88203.0,88197.0,0.00578035]
[1740518347487,2.963e-05,88211.0,88196.0,0.00578046]
[1740518347665,0.17006,88204.0,88198.0,0.00578023]
[1740518348012,0.170066,88201.0,88197.0,0.00578606]